bitfinex/quotes_BTCUSD_20241117
["timestamp","ask_amount","ask_price","bid_price","bid_amount"]
[1731808401356,0.01019108,90119.0,90117.0,0.0008566]
[1731808401578,0.01019108,90118.0,90117.0,0.0008566]
[1731808402033,0.01019108,90118.0,90117.0,0.1118226]
[1731808402733,0.01019108,90118.0,90117.0,0.0008566]
[1731808403006,0.01019108,90118.0,90117.0,0.11404183]
[1731808403257,0.01019108,90118.0,90117.0,0.11604183]
[1731808403493,0.16632754,90145.0,90126.0,0.110955]
[1731808403494,0.16632754,90127.0,90126.0,0.110955]
[1731808403727,0.16632754,90127.0,90117.0,0.0008566]
[1731808403966,0.01018779,90126.0,90117.0,0.0008566]
[1731808404219,0.22187,90143.0,90117.0,0.0008566]
[1731808404220,0.11096,90123.0,90117.0,0.0008566]
[1731808404446,0.221916,90124.0,90117.0,0.0008566]
[1731808404678,0.110963,90120.0,90117.0,0.0008566]
[1731808404897,0.0203734,90126.0,90117.0,0.0008566]
[1731808405117,0.110957,90125.0,90119.0,0.110963]
[1731808405354,0.35132995,90133.0,90117.0,0.0008566]
[1731808405355,0.0203734,90132.0,90117.0,0.0008566]
[1731808405648,0.110957,90125.0,90119.0,0.110963]
[1731808405873,0.221904,90129.0,90117.0,0.1118226]
[1731808406104,0.110962,90121.0,90117.0,0.0008566]
[1731808406339,0.221909,90127.0,90117.0,0.0008566]
[1731808406340,0.110965,90118.0,90117.0,0.0008566]
[1731808406795,0.110964,90120.0,90117.0,0.0008566]
[1731808407264,0.221909,90127.0,90117.0,0.0008566]
[1731808407485,0.11096,90122.0,90117.0,0.0008566]
[1731808407711,0.13133055,90121.0,90117.0,0.0008566]
[1731808407942,0.02036855,90121.0,90117.0,0.1118226]
[1731808408168,0.110959,90123.0,90117.0,0.1118226]
[1731808408169,0.221918,90123.0,90117.0,0.0008566]
[1731808408418,0.110965,90118.0,90117.0,0.0008566]
[1731808408869,0.221923,90121.0,90117.0,0.0008566]
[1731808409083,0.110964,90119.0,90117.0,0.0008566]
[1731808409300,0.110965,90118.0,90117.0,0.0008566]
[1731808410025,0.13133452,90118.0,90117.0,0.0008566]
[1731808410548,0.24039707,90118.0,90117.0,0.0008566]
[1731808411136,0.02036952,90118.0,90117.0,0.0008566]
[1731808411395,0.13133452,90118.0,90117.0,0.0008566]
[1731808411621,0.110965,90118.0,90117.0,0.0008566]
[1731808411842,0.02036274,90119.0,90117.0,0.0008566]
[1731808412315,2.5,90121.0,90117.0,0.0008566]
[1731808412316,0.110965,90118.0,90117.0,0.0008566]
[1731808412550,0.02036274,90120.0,90117.0,0.0008566]
[1731808412781,0.110965,90118.0,90117.0,0.0008566]
[1731808413005,0.22002755,90118.0,90117.0,0.0008566]
[1731808415816,0.03664187,90120.0,90117.0,0.0008566]
[1731808416071,2.5,90121.0,90118.0,0.110965]
[1731808416263,2.5,90121.0,90117.0,0.0008566]
[1731808416716,2.610962,90121.0,90117.0,0.0008566]
[1731808416937,0.110964,90119.0,90117.0,0.0008566]
[1731808417188,0.27729254,90118.0,90117.0,0.0008566]
[1731808417423,0.22002755,90118.0,90117.0,0.0008566]
[1731808418346,0.29672755,90118.0,90117.0,0.0008566]
[1731808418572,0.317084,90118.0,90117.0,0.0008566]
[1731808418795,0.33336877,90118.0,90117.0,0.0008566]
[1731808419237,0.33337452,90118.0,90117.0,0.0008566]
[1731808420644,0.33508672,90118.0,90117.0,0.0008566]
[1731808421602,0.31880195,90118.0,90117.0,0.0008566]
[1731808421835,0.33508672,90118.0,90117.0,0.0008566]
[1731808422327,0.49820195,90118.0,90117.0,0.0008566]
[1731808422593,0.49820195,90118.0,90109.0,0.0192191]
[1731808422594,0.243975,90110.0,90109.0,0.0192191]
[1731808422831,0.55119259,90110.0,90109.0,0.0192191]
[1731808423304,0.55119259,90110.0,90108.0,0.2508564]
[1731808423305,0.243976,90109.0,90108.0,0.2508564]
[1731808423540,0.4222611,90109.0,90108.0,0.2508564]
[1731808423791,0.3012851,90109.0,90108.0,0.2508564]
[1731808424022,0.4122611,90109.0,90108.0,0.2508564]
[1731808424251,0.3892611,90109.0,90108.0,0.2508564]
[1731808424711,0.37068552,90109.0,90108.0,0.2518564]
[1731808424931,0.26162297,90109.0,90108.0,0.2518564]
[1731808425165,0.37068552,90109.0,90108.0,0.2518564]
[1731808425614,0.05064697,90109.0,90108.0,0.2518564]
[1731808425849,0.0343622,90109.0,90108.0,0.3678334]
[1731808426116,0.0473622,90109.0,90108.0,0.3688334]
[1731808426282,0.0333622,90109.0,90108.0,0.3678334]
[1731808426518,0.0203622,90109.0,90108.0,0.3718334]
[1731808426749,0.014,90109.0,90108.0,0.3728334]
[1731808426975,0.0017122,90118.0,90114.0,0.12097]
[1731808426976,0.02038248,90115.0,90114.0,0.12097]
[1731808427432,0.0017122,90118.0,90117.0,0.110966]
[1731808428835,0.0017122,90118.0,90117.0,0.115966]
[1731808429269,0.0017122,90118.0,90116.0,0.005]
[1731808429508,0.0017122,90118.0,90117.0,0.005]
[1731808429723,0.0017122,90118.0,90117.0,0.115966]
[1731808430397,0.0017122,90118.0,90117.0,0.120966]
[1731808431511,0.0017122,90118.0,90111.0,0.005]
[1731808431512,0.110967,90117.0,90111.0,0.005]
[1731808431724,0.0017122,90118.0,90108.0,0.2558564]
[1731808431725,0.0017122,90118.0,90117.0,0.005]
[1731808432163,0.0017122,90118.0,90117.0,0.115966]
[1731808433030,0.0017122,90118.0,90117.0,0.005]
[1731808433744,0.0017122,90118.0,90112.0,0.005]
[1731808433978,0.110967,90117.0,90112.0,0.005]
[1731808434238,0.0017122,90118.0,90108.0,0.2508564]
[1731808434239,0.110976,90109.0,90108.0,0.2508564]
[1731808434744,0.14769804,90109.0,90108.0,0.2508564]
[1731808435685,0.13137716,90109.0,90108.0,0.2508564]
[1731808435927,0.1476953,90109.0,90108.0,0.2508564]
[1731808436845,0.2476953,90109.0,90108.0,0.2508564]
[1731808438678,0.1476953,90109.0,90108.0,0.2508564]
[1731808438897,0.02040116,90109.0,90108.0,0.2508564]
[1731808439394,0.0367193,90109.0,90108.0,0.2508564]
[1731808439610,0.27975785,90109.0,90108.0,0.2508564]
[1731808440763,0.51124974,90109.0,90108.0,0.2508564]
[1731808440997,0.37974974,90109.0,90108.0,0.2508564]
[1731808441738,0.36343971,90109.0,90108.0,0.2508564]
[1731808441981,0.37974974,90109.0,90108.0,0.2508564]
[1731808443418,0.35674974,90109.0,90108.0,0.2508564]
[1731808443887,0.37074974,90109.0,90108.0,0.2518564]
[1731808444116,0.35674974,90109.0,90108.0,0.2508564]
[1731808444349,0.36983855,90109.0,90108.0,0.2508564]
[1731808444573,0.40823585,90109.0,90108.0,0.2508564]
[1731808444803,0.44084465,90109.0,90108.0,0.2508564]
[1731808445024,0.59080042,90109.0,90108.0,0.2518564]
[1731808445243,0.68370042,90109.0,90108.0,0.2528564]
[1731808445474,0.67676439,90109.0,90108.0,0.2528564]
[1731808445706,0.68370042,90109.0,90108.0,0.2528564]
[1731808446160,0.68570042,90109.0,90108.0,0.2528564]
[1731808446405,0.84002796,90109.0,90108.0,0.2518564]
[1731808446632,0.69670042,90109.0,90108.0,0.2518564]
[1731808446885,0.69670042,90109.0,90108.0,0.2508564]
[1731808446886,0.68270042,90109.0,90108.0,0.2508564]
[1731808447104,0.72930228,90109.0,90108.0,0.2518564]
[1731808447345,0.72730228,90109.0,90108.0,0.2518564]
[1731808447598,0.67170042,90109.0,90108.0,0.2508564]
[1731808447842,0.70630228,90109.0,90108.0,0.2518564]
[1731808448103,0.70630228,90109.0,90108.0,0.2528564]
[1731808448104,0.78144405,90109.0,90108.0,0.2528564]
[1731808448344,0.67676439,90109.0,90108.0,0.2528564]
[1731808448811,0.66045999,90109.0,90108.0,0.2528564]
[1731808449054,0.68368476,90109.0,90108.0,0.2528564]
[1731808449783,0.68568476,90109.0,90108.0,0.2528564]
[1731808450236,0.212979,90107.0,90106.0,0.00040968]
[1731808450456,0.39131905,90107.0,90106.0,0.00040968]
[1731808450978,0.40489443,90107.0,90106.0,0.00040968]
[1731808451200,0.42117621,90107.0,90106.0,0.00040968]
[1731808451858,0.43517621,90107.0,90106.0,0.001]
[1731808452362,0.41017354,90107.0,90106.0,0.001]
[1731808452578,0.42417354,90107.0,90106.0,0.001]
[1731808452795,0.42617354,90107.0,90106.0,0.001]
[1731808453254,0.42417354,90107.0,90106.0,0.001]
[1731808454002,0.39160997,90107.0,90106.0,0.001]
[1731808454261,0.46262845,90107.0,90106.0,0.001]
[1731808454763,0.43006488,90107.0,90106.0,0.001]
[1731808455003,0.46262845,90107.0,90106.0,0.001]
[1731808455250,0.96262845,90107.0,90106.0,0.001]
[1731808456370,0.92806488,90107.0,90106.0,0.001]
[1731808456597,0.96262845,90107.0,90106.0,0.001]
[1731808456832,0.95306488,90107.0,90106.0,0.001]
[1731808457090,0.98562845,90107.0,90106.0,0.0018562]
[1731808457812,0.94717354,90107.0,90106.0,0.0018562]
[1731808458067,0.92417354,90107.0,90106.0,0.0018562]
[1731808458731,0.89425774,90107.0,90106.0,0.0018562]
[1731808458952,0.94915899,90107.0,90106.0,0.0018562]
[1731808459862,0.92615899,90107.0,90106.0,0.0018562]
[1731808460792,0.92415899,90107.0,90106.0,0.0018562]
[1731808461024,0.92415899,90107.0,90101.0,0.25]
[1731808461025,0.34000474,90102.0,90101.0,0.22688259]
[1731808461246,0.4560044,90102.0,90101.0,0.22688259]
[1731808461465,0.49265251,90102.0,90101.0,0.22688259]
[1731808461682,0.52522863,90102.0,90101.0,0.22688259]
[1731808461933,0.49265251,90102.0,90101.0,0.22688259]
[1731808462237,0.52522863,90102.0,90101.0,0.22688259]
[1731808462465,0.52722863,90102.0,90101.0,0.22688259]
[1731808462701,0.52522863,90102.0,90101.0,0.22788259]
[1731808464297,0.52522863,90102.0,90101.0,0.22688259]
[1731808464805,0.50903276,90102.0,90101.0,0.22688259]
[1731808465023,0.50209575,90102.0,90101.0,0.22688259]
[1731808465264,0.53554719,90102.0,90101.0,0.22688259]
[1731808465476,0.53554719,90102.0,90101.0,0.22788259]
[1731808465721,1.03554719,90102.0,90101.0,0.22788259]
[1731808466407,0.53554719,90102.0,90101.0,0.22788259]
[1731808468167,0.48251873,90102.0,90101.0,0.22788259]
[1731808468384,0.53556917,90102.0,90101.0,0.22788259]
[1731808468919,0.45856917,90102.0,90101.0,0.22788259]
[1731808469847,0.45856917,90102.0,90101.0,0.22873889]
[1731808470538,0.46056917,90102.0,90101.0,0.22873889]
[1731808470763,1.10496917,90102.0,90101.0,0.22873889]
[1731808470986,1.10496917,90102.0,90101.0,0.19405174]
[1731808471248,1.11884406,90102.0,90101.0,0.19405174]
[1731808471707,1.05191873,90102.0,90101.0,0.19405174]
[1731808471962,1.1188644,90102.0,90101.0,0.19405174]
[1731808473057,1.1208644,90102.0,90101.0,0.19405174]
[1731808475449,0.72992695,90102.0,90101.0,0.19305174]
[1731808475668,1.03651556,90102.0,90101.0,0.19305174]
[1731808475884,1.08400607,90102.0,90101.0,0.19305174]
[1731808476120,1.09800607,90102.0,90101.0,0.16907696]
[1731808476346,1.08400607,90102.0,90101.0,0.16907696]
[1731808476602,1.09800607,90102.0,90101.0,0.16907696]
[1731808477781,1.19556955,90102.0,90101.0,0.16907696]
[1731808478000,1.09800607,90102.0,90101.0,0.16907696]
[1731808478427,1.19574554,90102.0,90101.0,0.16907696]
[1731808478888,1.09800607,90102.0,90101.0,0.16907696]
[1731808479124,1.08413108,90102.0,90101.0,0.16907696]
[1731808480484,1.23047631,90102.0,90101.0,0.16907696]
[1731808480707,1.44550446,90102.0,90101.0,0.16907696]
[1731808480948,1.44550813,90102.0,90101.0,0.16907696]
[1731808481186,1.08413108,90102.0,90101.0,0.16907696]
[1731808481401,1.08213108,90102.0,90101.0,0.16907696]
[1731808481623,1.22901495,90102.0,90101.0,0.16907696]
[1731808481891,1.08213108,90102.0,90101.0,0.16907696]
[1731808482138,1.22901525,90102.0,90101.0,0.16907696]
[1731808482380,1.08384368,90102.0,90101.0,0.16907696]
[1731808482597,1.44537984,90102.0,90101.0,0.16907696]
[1731808482858,1.44539429,90102.0,90101.0,0.16907696]
[1731808484029,0.926927,90102.0,90101.0,0.16907696]
[1731808484226,0.53271023,90102.0,90101.0,0.16907696]
[1731808484472,0.67968138,90102.0,90101.0,0.16907696]
[1731808485137,0.659256,90102.0,90101.0,0.16907696]
[1731808485374,0.51228615,90102.0,90101.0,0.16907696]
[1731808485613,0.87407952,90102.0,90101.0,0.16907696]
[1731808486037,1.06920649,90102.0,90101.0,0.16907696]
[1731808486253,0.47877989,90102.0,90101.0,0.16907696]
[1731808486469,0.51229017,90102.0,90101.0,0.16907696]
[1731808486691,0.65931205,90102.0,90101.0,0.16907696]
[1731808487229,0.87411607,90102.0,90101.0,0.16907696]
[1731808487445,1.1793072,90102.0,90101.0,0.16907696]
[1731808487661,0.89711607,90102.0,90101.0,0.16907696]
[1731808487884,0.87411607,90102.0,90101.0,0.16907696]
[1731808488355,1.07023924,90102.0,90101.0,0.16907696]
[1731808489060,0.97023924,90102.0,90101.0,0.16907696]
[1731808489344,0.41229017,90102.0,90101.0,0.16907696]
[1731808489587,0.0297126,90102.0,90101.0,0.28006296]
[1731808489824,0.05628826,90102.0,90101.0,0.28006296]
[1731808490309,0.05628826,90102.0,90101.0,0.28506296]
[1731808490604,0.03993401,90102.0,90101.0,0.40646296]
[1731808490808,0.02593401,90102.0,90101.0,0.40146296]
[1731808491054,0.03993401,90102.0,90101.0,0.29047696]
[1731808491279,0.03993401,90102.0,90101.0,0.2342423]
[1731808491519,0.01193401,90102.0,90101.0,0.1172563]
[1731808491747,0.02593401,90102.0,90101.0,0.11729457]
[1731808491962,0.02593401,90102.0,90101.0,0.11629457]
[1731808491963,0.01193401,90102.0,90101.0,0.11629457]
[1731808492456,0.01193401,90102.0,90101.0,0.11529457]
[1731808492677,0.01193401,90102.0,90101.0,0.11629457]
[1731808493630,0.12291901,90102.0,90101.0,0.11629457]
[1731808493876,0.12291901,90102.0,90101.0,0.11529457]
[1731808494112,0.12291901,90102.0,90101.0,0.11615087]
[1731808494358,0.12291901,90102.0,90101.0,0.11715087]
[1731808494574,0.14332913,90102.0,90101.0,0.11715087]
[1731808494807,0.14332913,90102.0,90101.0,0.11615087]
[1731808495039,0.12291901,90102.0,90101.0,0.11715087]
[1731808495276,0.25239168,90102.0,90101.0,0.0780563]
[1731808495504,0.3906741,90102.0,90101.0,0.0008563]
[1731808495743,0.210986,90101.0,90100.0,0.6]
[1731808495960,0.35068008,90101.0,90100.0,0.57198553]
[1731808496401,0.35067374,90101.0,90100.0,0.57198553]
[1731808496611,0.350675,90101.0,90100.0,0.57198553]
[1731808497579,0.03062645,90101.0,90100.0,0.61768553]
[1731808497842,0.03060971,90101.0,90100.0,0.69268553]
[1731808498073,0.03060971,90101.0,90100.0,0.80367253]
[1731808498296,0.01020467,90101.0,90100.0,0.81467253]
[1731808498945,0.110969,90115.0,90107.0,0.110978]
[1731808499160,0.110969,90115.0,90100.0,0.62768553]
[1731808499161,0.16632754,90110.0,90109.0,0.185976]
[1731808499370,0.1,90116.0,90109.0,0.1207]
[1731808499590,0.11097,90114.0,90109.0,0.1207]
[1731808499832,0.10906255,90119.0,90109.0,0.1207]
[1731808499833,0.1,90118.0,90109.0,0.1207]
[1731808500043,0.110975,90110.0,90109.0,0.1207]
[1731808500253,0.22003755,90110.0,90109.0,0.1207]
[1731808500493,0.22003755,90110.0,90109.0,0.075]
[1731808500713,0.110985,90102.0,90101.0,0.075]
[1731808500949,0.221955,90109.0,90100.0,0.57798553]
[1731808500950,0.110986,90101.0,90100.0,0.57298553]
[1731808501176,0.110986,90101.0,90100.0,0.57198553]
[1731808501405,0.32004855,90101.0,90100.0,0.57198553]
[1731808502301,0.210986,90101.0,90100.0,0.57298553]
[1731808502526,0.32004855,90101.0,90100.0,0.57298553]
[1731808502981,0.12901974,90105.0,90100.0,0.57298553]
[1731808503204,0.221935,90117.0,90101.0,0.0488]
[1731808503205,0.110979,90107.0,90101.0,0.0488]
[1731808503421,0.221958,90107.0,90102.0,0.0794]
[1731808503670,0.110984,90103.0,90102.0,0.0794]
[1731808504619,0.110981,90106.0,90102.0,0.0794]
[1731808504859,0.48827754,90110.0,90102.0,0.0804]
[1731808505091,0.37539009,90110.0,90102.0,0.0804]
[1731808505303,0.110984,90103.0,90102.0,0.0794]
[1731808506217,0.110986,90101.0,90100.0,0.57284183]
[1731808506433,0.32004855,90101.0,90100.0,0.57284183]
[1731808507143,0.3370515,90101.0,90100.0,0.57284183]
[1731808507372,0.32004855,90101.0,90100.0,0.57284183]
[1731808507585,0.32004855,90101.0,90100.0,0.57384183]
[1731808507801,0.34186788,90101.0,90100.0,0.57384183]
[1731808508017,0.34186788,90101.0,90100.0,0.57284183]
[1731808508231,0.34186788,90101.0,90100.0,0.57384183]
[1731808509869,0.32004855,90101.0,90100.0,0.57384183]
[1731808510083,0.49966176,90101.0,90100.0,0.57384183]
[1731808510589,0.49966176,90101.0,90100.0,0.01884059]
[1731808510590,0.35269403,90101.0,90100.0,0.01884059]
[1731808510805,0.35269403,90101.0,90085.0,0.25]
[1731808510806,0.210995,90094.0,90085.0,0.25]
[1731808511018,0.47969692,90094.0,90085.0,0.25]
[1731808512437,0.5123424,90094.0,90085.0,0.25]
[1731808512637,0.47969692,90094.0,90085.0,0.25]
[1731808512861,0.64136214,90094.0,90085.0,0.25]
[1731808513613,0.64136214,90094.0,90093.0,0.251]
[1731808513836,0.046,90088.0,90085.0,0.249]
[1731808514061,0.34908729,90086.0,90085.0,0.249]
[1731808514283,0.6966138,90086.0,90085.0,0.02765157]
[1731808514525,0.6966138,90086.0,90084.0,0.25]
[1731808514526,0.136006,90085.0,90084.0,0.25]
[1731808514754,1.81482931,90085.0,90084.0,0.25]
[1731808514985,2.39300886,90085.0,90084.0,0.25]
[1731808515225,2.39298622,90085.0,90084.0,0.25]
[1731808515444,2.70751162,90085.0,90084.0,0.25]
[1731808515664,2.43248419,90085.0,90084.0,0.25]
[1731808515916,2.02326093,90085.0,90084.0,0.251]
[1731808516158,2.06041052,90085.0,90084.0,0.251]
[1731808516438,0.113014,90078.0,90076.0,0.25]
[1731808516668,0.5047199,90078.0,90076.0,0.25]
[1731808516911,0.63882855,90078.0,90076.0,0.25]
[1731808517164,0.51598955,90078.0,90077.0,0.245]
[1731808517425,0.51598955,90078.0,90077.0,0.23]
[1731808517426,1.01598955,90078.0,90077.0,0.23]
[1731808517892,1.02998955,90078.0,90077.0,0.23]
[1731808518120,0.52998955,90078.0,90077.0,0.23]
[1731808518379,0.52998955,90078.0,90077.0,0.231]
[1731808518380,0.54398955,90078.0,90077.0,0.231]
[1731808519103,0.47709629,90078.0,90077.0,0.231]
[1731808519328,0.36830404,90078.0,90077.0,0.231]
[1731808519542,0.38686186,90078.0,90077.0,0.23]
[1731808519760,0.41486186,90078.0,90077.0,0.23]
[1731808520280,0.40086186,90078.0,90077.0,0.19530378]
[1731808520498,0.41486186,90078.0,90077.0,0.19530378]
[1731808520971,0.40086186,90078.0,90077.0,0.19530378]
[1731808521192,0.40908949,90078.0,90077.0,0.19530378]
[1731808521413,0.47934766,90078.0,90077.0,0.19630378]
[1731808521633,0.48834766,90078.0,90077.0,0.19530378]
[1731808522096,0.50234766,90078.0,90077.0,0.19630378]
[1731808522345,0.42156235,90078.0,90077.0,0.19530378]
[1731808522608,0.43556235,90078.0,90077.0,0.19630378]
[1731808522870,0.43783559,90078.0,90077.0,0.19630378]
[1731808523091,0.42383559,90078.0,90077.0,0.19630378]
[1731808523769,0.43783559,90078.0,90077.0,0.19630378]
[1731808524266,0.44565368,90078.0,90077.0,0.19630378]
[1731808524498,0.45965368,90078.0,90077.0,0.19630378]
[1731808524717,0.50154066,90078.0,90077.0,0.1477247]
[1731808524947,0.47354066,90078.0,90077.0,0.1467247]
[1731808525186,0.48954066,90078.0,90077.0,0.1477247]
[1731808525400,0.48954066,90078.0,90077.0,0.1467247]
[1731808525401,0.60084066,90078.0,90077.0,0.1467247]
[1731808525848,0.61484066,90078.0,90077.0,0.12274057]
[1731808526067,0.60084066,90078.0,90077.0,0.12174057]
[1731808526283,0.62684066,90078.0,90077.0,0.12274057]
[1731808526544,0.236016,90077.0,90076.0,0.12647576]
[1731808526795,1.387756,90077.0,90076.0,0.12647576]
[1731808527028,1.387756,90077.0,90063.0,0.03]
[1731808527029,1.55581855,90077.0,90063.0,0.03]
[1731808527250,0.97210629,90070.0,90063.0,0.03]
[1731808527468,1.08003053,90070.0,90063.0,0.03]
[1731808528182,1.08203053,90070.0,90063.0,0.03]
[1731808528428,1.18909308,90070.0,90063.0,0.03]
[1731808528671,1.19109308,90070.0,90063.0,0.03]
[1731808528914,0.69109308,90070.0,90063.0,0.03]
[1731808529147,0.70509308,90070.0,90063.0,0.03]
[1731808529421,0.69109308,90070.0,90069.0,0.2508565]
[1731808529632,1.21909308,90070.0,90069.0,0.2508565]
[1731808529863,1.20509308,90070.0,90069.0,0.2508565]
[1731808530101,1.20509308,90070.0,90069.0,0.21615143]
[1731808530551,1.21909308,90070.0,90069.0,0.21615143]
[1731808530787,1.21909308,90070.0,90069.0,0.16756458]
[1731808531025,1.20509308,90070.0,90069.0,0.16756458]
[1731808531266,1.34749308,90070.0,90069.0,0.16756458]
[1731808531503,1.33349308,90070.0,90069.0,0.16756458]
[1731808531972,1.34749308,90070.0,90069.0,0.16756458]
[1731808532206,1.33349308,90070.0,90069.0,0.16756458]
[1731808533358,1.34749308,90070.0,90069.0,0.16353729]
[1731808533589,1.1334027,90070.0,90069.0,0.1590025]
[1731808533831,0.38684559,90070.0,90069.0,0.1590025]
[1731808534273,0.40084559,90070.0,90069.0,0.1590025]
[1731808534535,0.45859368,90070.0,90069.0,0.1590025]
[1731808534989,0.48159368,90070.0,90069.0,0.1590025]
[1731808535463,0.55658559,90070.0,90069.0,0.1590025]
[1731808535729,0.57334798,90070.0,90069.0,0.1590025]
[1731808535999,0.58934798,90070.0,90069.0,0.1590025]
[1731808536228,0.56134798,90070.0,90069.0,0.1590025]
[1731808536466,0.57534798,90070.0,90069.0,0.1590025]
[1731808536694,0.58934798,90070.0,90069.0,0.1590025]
[1731808536919,0.58934798,90070.0,90069.0,0.11041737]
[1731808537141,0.68441053,90070.0,90069.0,0.11041737]
[1731808537374,0.68441053,90070.0,90069.0,0.0479485]
[1731808537817,0.67041053,90070.0,90069.0,0.0479485]
[1731808538047,0.66769027,90070.0,90069.0,0.0416485]
[1731808538275,0.66569027,90070.0,90069.0,0.0416485]
[1731808538530,0.48487963,90070.0,90069.0,0.0416485]
[1731808538985,0.48687963,90070.0,90069.0,0.0416485]
[1731808539459,0.41188772,90070.0,90069.0,0.0416485]
[1731808539692,0.42388772,90070.0,90069.0,0.0416485]
[1731808539922,0.47940577,90070.0,90069.0,0.0416485]
[1731808540159,0.46540577,90070.0,90069.0,0.0416485]
[1731808540402,0.65146023,90070.0,90069.0,0.00694449]
[1731808540638,0.27554305,90069.0,90068.0,0.2429289]
[1731808540870,0.5145228,90069.0,90068.0,0.2429289]
[1731808541108,0.5145228,90069.0,90068.0,0.23406292]
[1731808541340,0.5145228,90069.0,90068.0,0.16465328]
[1731808541572,0.5125228,90069.0,90068.0,0.11467834]
[1731808541805,0.47100475,90069.0,90068.0,0.11467834]
[1731808542048,0.48500475,90069.0,90068.0,0.11467834]
[1731808542325,0.41001284,90069.0,90068.0,0.11467834]
[1731808542560,0.48500475,90069.0,90068.0,0.11467834]
[1731808542789,0.42401284,90069.0,90068.0,0.11467834]
[1731808543031,0.46553089,90069.0,90068.0,0.11467834]
[1731808543275,0.45153089,90069.0,90068.0,0.11467834]
[1731808543772,0.40101284,90069.0,90068.0,0.11467834]
[1731808544014,0.38701284,90069.0,90068.0,0.11467834]
[1731808544479,0.40101284,90069.0,90068.0,0.11467834]
[1731808544737,0.20398784,90069.0,90068.0,0.11467834]
[1731808544986,0.18998784,90069.0,90068.0,0.11467834]
[1731808545223,0.30101284,90069.0,90068.0,0.11467834]
[1731808545451,0.20398784,90069.0,90068.0,0.19087834]
[1731808545687,0.18998784,90069.0,90068.0,0.30190534]
[1731808545922,0.20398784,90069.0,90068.0,0.23717834]
[1731808546149,0.18998784,90069.0,90068.0,0.23717834]
[1731808546631,0.20398784,90069.0,90068.0,0.23717834]
[1731808546876,0.18998784,90069.0,90068.0,0.34820534]
[1731808547100,0.08102004,90069.0,90068.0,0.34820534]
[1731808547373,0.01692004,90069.0,90068.0,0.35820534]
[1731808547601,2.26243324,90070.0,90069.0,0.121025]
[1731808547841,2.13433324,90070.0,90069.0,0.204125]
[1731808548053,2.13433324,90070.0,90069.0,0.123025]
[1731808548054,2.05123324,90070.0,90069.0,0.123025]
[1731808548272,2.05123324,90070.0,90069.0,0.128025]
[1731808548744,2.05123324,90070.0,90069.0,0.133025]
[1731808548745,2.06523324,90070.0,90069.0,0.133025]
[1731808549191,2.05123324,90070.0,90069.0,0.24008755]
[1731808549405,2.05123324,90070.0,90069.0,0.24208755]
[1731808549856,2.01032573,90070.0,90069.0,0.24008755]
[1731808550113,2.01032573,90070.0,90069.0,0.26508755]
[1731808550339,2.01032573,90070.0,90069.0,0.26708755]
[1731808550340,1.35760073,90070.0,90069.0,0.26708755]
[1731808550567,1.29581001,90070.0,90069.0,0.26708755]
[1731808550790,1.29581001,90070.0,90069.0,0.26508755]
[1731808551014,1.29581001,90070.0,90069.0,0.26708755]
[1731808551256,0.75308364,90070.0,90069.0,0.29708755]
[1731808551525,0.65762315,90070.0,90069.0,0.29808755]
[1731808551776,0.20407601,90070.0,90069.0,0.42610729]
[1731808552005,0.0017122,90119.0,90098.0,0.13299]
[1731808552224,0.0017122,90119.0,90118.0,0.132965]
[1731808552442,0.16632754,90145.0,90134.0,0.022]
[1731808552659,0.16632754,90145.0,90134.0,0.37102729]
[1731808552884,0.0017132,90153.0,90152.0,0.017]
[1731808553104,0.0017132,90153.0,90152.0,0.125923]
[1731808553575,0.0017132,90153.0,90152.0,0.24198555]
[1731808553811,0.0017132,90153.0,90152.0,0.23698555]
[1731808554035,0.0017132,90153.0,90152.0,0.01]
[1731808554255,0.1126352,90153.0,90152.0,0.004]
[1731808554503,0.1126352,90153.0,90152.0,0.009]
[1731808554504,0.22169775,90153.0,90152.0,0.009]
[1731808554934,0.22169775,90153.0,90152.0,0.011]
[1731808555206,0.22169775,90153.0,90152.0,0.009]
[1731808555464,0.0017132,90153.0,90152.0,0.122923]
[1731808555699,0.0017132,90153.0,90152.0,0.124923]
[1731808555919,0.0017132,90153.0,90152.0,0.122923]
[1731808556359,0.0017132,90153.0,90152.0,0.120923]
[1731808556601,0.0017132,90153.0,90152.0,0.122923]
[1731808557076,0.0017128,90161.0,90160.0,0.132913]
[1731808557289,0.0017128,90161.0,90160.0,0.39399529]
[1731808557537,0.0017128,90161.0,90160.0,0.42399529]
[1731808558263,0.0017126,90176.0,90175.0,0.130895]
[1731808558484,0.0017126,90176.0,90175.0,0.26717468]
[1731808558708,0.0017126,90176.0,90175.0,0.26495755]
[1731808558932,0.0017112,90224.0,90199.0,0.017]
[1731808559172,0.0017112,90224.0,90199.0,0.24192755]
[1731808560109,0.16632754,90218.0,90199.0,0.120865]
[1731808560379,0.22168,90220.0,90199.0,0.122865]
[1731808560380,0.221699,90213.0,90199.0,0.122865]
[1731808560608,1e-08,90209.0,90208.0,0.01]
[1731808560847,1e-08,90209.0,90205.0,0.005]
[1731808561074,1e-08,90209.0,90175.0,0.001]
[1731808561075,0.221714,90206.0,90189.0,0.005]
[1731808561321,1e-08,90209.0,90199.0,0.002]
[1731808561322,0.210864,90200.0,90199.0,0.002]
[1731808561540,0.34292655,90200.0,90199.0,0.003]
[1731808561793,0.34292655,90200.0,90199.0,0.002]
[1731808562512,0.20906255,90200.0,90190.0,0.16632754]
[1731808562733,0.10906255,90199.0,90193.0,0.005]
[1731808563004,0.10906255,90199.0,90180.0,0.00221754]
[1731808563005,0.221736,90197.0,90180.0,0.005]
[1731808563228,0.110888,90181.0,90180.0,0.005]
[1731808563651,0.19295167,90192.0,90184.0,0.005]
[1731808563652,0.023,90192.0,90184.0,0.005]
[1731808563864,0.023,90195.0,90184.0,0.005]
[1731808564095,0.110881,90186.0,90185.0,0.005]
[1731808564329,0.023,90191.0,90185.0,0.005]
[1731808564572,0.19295167,90192.0,90180.0,0.007]
[1731808564573,0.110888,90181.0,90180.0,0.001]
[1731808564789,0.21995055,90181.0,90180.0,0.001]
[1731808565696,0.110895,90175.0,90174.0,0.005]
[1731808566377,0.110899,90172.0,90171.0,0.005]
[1731808566625,0.21996155,90172.0,90171.0,0.005]
[1731808567099,0.21996155,90172.0,90166.0,0.005]
[1731808567100,0.2218,90171.0,90166.0,0.005]
[1731808567358,0.110905,90167.0,90166.0,0.01]
[1731808567587,0.297692,90175.0,90154.0,0.005]
[1731808567588,0.0759,90175.0,90174.0,0.005]
[1731808568058,0.186795,90175.0,90174.0,0.005]
[1731808568342,0.186795,90175.0,90174.0,0.01]
[1731808568343,0.0759,90175.0,90174.0,0.01]